bitfinex/quotes_BTCUSD_20250617
["timestamp","ask_amount","ask_price","bid_price","bid_amount"]
[1750129729974,0.00031356,107650.0,107640.0,1.93854081]
[1750129730245,0.00031356,107650.0,107640.0,1.95854081]
[1750129730871,0.00031356,107650.0,107640.0,2.01514524]
[1750129731506,0.00031356,107650.0,107640.0,2.06514524]
[1750129732178,0.00031356,107650.0,107640.0,2.03675818]
[1750129732401,0.00031356,107650.0,107640.0,3.59253124]
[1750129732621,0.00031356,107650.0,107640.0,2.39318781]
[1750129732837,6e-05,107670.0,107660.0,0.86246093]
[1750129733097,6e-05,107670.0,107660.0,1.48221776]
[1750129733311,6e-05,107670.0,107660.0,1.73880486]
[1750129733749,0.2,107680.0,107670.0,0.6882411]
[1750129733967,0.19994,107680.0,107670.0,1.52945175]
[1750129734190,0.19994,107680.0,107670.0,1.2675905]
[1750129734400,0.19994,107680.0,107670.0,1.24882096]
[1750129734614,0.19994,107680.0,107670.0,1.23482096]
[1750129735268,0.19994,107680.0,107670.0,1.30904968]
[1750129735483,0.19994,107680.0,107670.0,1.77673468]
[1750129735716,0.19994,107680.0,107670.0,1.64676668]
[1750129735943,0.19994,107680.0,107670.0,2.28447768]
[1750129736388,0.19994,107680.0,107670.0,2.21024896]
[1750129736881,0.19994,107680.0,107670.0,1.84902896]
[1750129737099,0.19994,107680.0,107670.0,1.10485296]
[1750129737348,0.19994,107680.0,107670.0,1.00390711]
[1750129737555,0.19994,107680.0,107670.0,0.96023211]
[1750129737782,0.19994,107680.0,107670.0,0.71310455]
[1750129738231,0.19994,107680.0,107670.0,1.05310455]
[1750129738438,0.19994,107680.0,107670.0,0.88882455]
[1750129738653,0.19994,107680.0,107670.0,1.05306455]
[1750129739094,0.19994,107680.0,107670.0,1.31246955]
[1750129739351,0.19994,107680.0,107670.0,1.31446955]
[1750129739572,0.19994,107680.0,107670.0,1.05806455]
[1750129739793,0.19994,107680.0,107670.0,1.31446955]
[1750129740516,0.19994,107680.0,107670.0,1.07564308]
[1750129740747,0.19994,107680.0,107670.0,0.89382455]
[1750129740977,0.19994,107680.0,107670.0,1.05802455]
[1750129741448,0.19994,107680.0,107670.0,1.31442955]
[1750129742898,0.19994,107680.0,107670.0,1.05802455]
[1750129743125,0.19994,107680.0,107670.0,1.31442955]
[1750129743841,0.19994,107680.0,107670.0,1.05802455]
[1750129744067,0.19994,107680.0,107670.0,1.31442955]
[1750129744790,0.19994,107680.0,107670.0,1.05802455]
[1750129745005,0.22562599,107680.0,107670.0,0.89382455]
[1750129745230,0.24192599,107680.0,107670.0,0.55382455]
[1750129745477,0.25052511,107680.0,107670.0,0.71798455]
[1750129745717,0.25052511,107680.0,107670.0,0.49798455]
[1750129745718,0.25981154,107680.0,107670.0,0.49798455]
[1750129745959,0.43626062,107680.0,107670.0,0.31525023]
[1750129746190,0.43626174,107680.0,107670.0,0.03325579]
[1750129746429,0.42697523,107680.0,107670.0,0.21198831]
[1750129746681,0.42697523,107680.0,107670.0,0.22127594]
[1750129746867,0.42697523,107680.0,107670.0,0.05511594]
[1750129747102,0.42697523,107680.0,107670.0,0.4050287]
[1750129747304,0.42697523,107680.0,107670.0,0.41831607]
[1750129747514,0.42697523,107680.0,107670.0,0.4090287]
[1750129747726,0.42697523,107680.0,107670.0,0.41831625]
[1750129747932,0.42697523,107680.0,107670.0,0.43689074]
[1750129748138,0.25052623,107680.0,107670.0,0.5300925]
[1750129748359,0.25052623,107680.0,107670.0,0.5380925]
[1750129749012,0.25015473,107680.0,107670.0,0.5380925]
[1750129749220,0.25944081,107680.0,107670.0,0.54737953]
[1750129749438,0.26872749,107680.0,107670.0,0.54737953]
[1750129749657,0.69229541,107680.0,107670.0,0.29132992]
[1750129750055,0.69229541,107680.0,107670.0,0.49565751]
[1750129750488,0.43589041,107680.0,107670.0,0.49565751]
[1750129750912,0.24086762,107680.0,107670.0,0.51423183]
[1750129751126,0.27801358,107680.0,107670.0,0.51423183]
[1750129751312,0.45446292,107680.0,107670.0,0.5049448]
[1750129751562,0.45446292,107680.0,107670.0,0.49565751]
[1750129752233,0.25944064,107680.0,107670.0,0.51423183]
[1750129752447,0.45446283,107680.0,107670.0,0.5049448]
[1750129753692,0.45446283,107680.0,107670.0,0.49565751]
[1750129753901,0.44517658,107680.0,107670.0,0.46754384]
[1750129754107,0.44517658,107680.0,107670.0,0.29132992]
[1750129754340,0.43589024,107680.0,107670.0,0.20433562]
[1750129754554,0.43589024,107680.0,107670.0,0.19504816]
[1750129754767,0.69229524,107680.0,107670.0,0.03096816]
[1750129754976,0.69079524,107680.0,107670.0,0.38080092]
[1750129755180,0.69079524,107680.0,107670.0,0.39489352]
[1750129755379,0.69079524,107680.0,107670.0,0.41371999]
[1750129755587,0.68150864,107680.0,107670.0,0.03096816]
[1750129755828,0.68150864,107680.0,107670.0,0.01214169]
[1750129756041,0.68150864,107680.0,107670.0,0.03096816]
[1750129756256,1.03884213,107680.0,107670.0,0.01214169]
[1750129756465,1.06103307,107680.0,107670.0,0.00814169]
[1750129756903,1.04369958,107680.0,107670.0,0.00814169]
[1750129757157,1.05824043,107680.0,107670.0,0.00814169]
[1750129757364,1.05824043,107680.0,107660.0,0.001]
[1750129757365,0.54958107,107670.0,107660.0,0.001]
[1750129757580,1.16645877,107670.0,107660.0,0.00147317]
[1750129759573,1.16645877,107670.0,107630.0,0.01882647]
[1750129759574,0.3712,107640.0,107630.0,0.01882647]
[1750129759802,1.02426409,107640.0,107630.0,0.01882647]
[1750129760257,0.23560335,107630.0,107620.0,0.07387313]
[1750129760486,0.49200835,107630.0,107620.0,0.2961472]
[1750129760708,0.23560335,107630.0,107620.0,0.11030814]
[1750129760896,0.2263127,107630.0,107620.0,0.11030814]
[1750129761352,0.21702179,107630.0,107620.0,0.11030814]
[1750129761790,0.21702179,107630.0,107620.0,0.10101619]
[1750129762881,0.22002179,107630.0,107620.0,0.10301619]
[1750129763089,0.22002179,107630.0,107620.0,0.0946996]
[1750129763299,0.22002179,107630.0,107620.0,0.28983052]
[1750129763549,0.04349039,107630.0,107620.0,0.39536397]
[1750129763768,0.04016243,107630.0,107620.0,0.41394691]
[1750129764320,0.04945343,107630.0,107620.0,0.41394691]
[1750129764916,0.04016243,107630.0,107620.0,0.41394691]
[1750129765139,0.003,107630.0,107620.0,0.57798691]
[1750129765364,0.003,107630.0,107620.0,1.05039191]
[1750129765578,0.003,107630.0,107620.0,1.06539191]
[1750129766226,0.003,107630.0,107620.0,1.06339191]
[1750129766667,0.00928867,107650.0,107640.0,0.25250064]
[1750129766902,0.01857742,107650.0,107640.0,0.5127824]
[1750129767375,0.00928858,107650.0,107640.0,0.51278179]
[1750129767590,0.01857725,107650.0,107640.0,0.51278179]
[1750129767811,0.01857587,107660.0,107650.0,0.23248061]
[1750129768031,0.02786402,107660.0,107650.0,0.33801121]
[1750129768256,0.034275,107670.0,107660.0,0.24317304]
[1750129768489,0.018575,107670.0,107660.0,0.41646102]
[1750129768700,0.20432776,107670.0,107660.0,0.40717304]
[1750129768940,0.20432776,107670.0,107660.0,0.39788489]
[1750129769157,0.19504039,107670.0,107660.0,0.20282647]
[1750129769371,0.19504039,107670.0,107660.0,0.21211479]
[1750129769590,0.19504039,107670.0,107660.0,0.39835844]
[1750129769829,0.48454539,107670.0,107660.0,0.00047364]
[1750129770054,0.98854539,107670.0,107660.0,0.00047364]
[1750129770266,1.099328,107670.0,107660.0,0.00047364]
[1750129770697,0.935328,107670.0,107660.0,0.00243364]
[1750129770930,0.56814039,107670.0,107660.0,0.00243364]
[1750129771214,0.56814039,107670.0,107660.0,0.02126011]
[1750129771451,0.82454539,107670.0,107660.0,0.02126011]
[1750129771916,0.87130539,107670.0,107660.0,0.02126011]
[1750129772393,0.53130539,107670.0,107660.0,0.02126011]
[1750129772619,0.53130539,107670.0,107660.0,0.0438225]
[1750129773258,0.53130539,107670.0,107660.0,0.02126011]
[1750129778424,0.53130539,107670.0,107660.0,0.00243364]
[1750129778655,0.982088,107670.0,107660.0,0.00243364]
[1750129779097,1.00428127,107670.0,107660.0,0.00243364]
[1750129782071,1.16804127,107670.0,107660.0,0.00243364]
[1750129782943,0.981928,107670.0,107660.0,0.00243364]
[1750129783150,1.145848,107670.0,107660.0,0.00243364]
[1750129784219,1.145808,107670.0,107660.0,0.00243364]
[1750129784430,1.16801906,107670.0,107660.0,0.00243364]
[1750129786815,0.95753906,107670.0,107660.0,0.00243364]
[1750129787026,1.16801906,107670.0,107660.0,0.00243364]
[1750129791273,0.91161406,107670.0,107660.0,0.00243364]
[1750129791491,1.16801906,107670.0,107660.0,0.00243364]
[1750129791697,1.19592006,107670.0,107660.0,0.00243364]
[1750129791902,1.16801906,107670.0,107660.0,0.00243364]
[1750129792113,1.29206928,107670.0,107660.0,0.00243364]
[1750129792746,1.19588006,107670.0,107660.0,0.00243364]
[1750129792966,1.16797906,107670.0,107660.0,0.00243364]
[1750129798509,0.91157406,107670.0,107660.0,0.00243364]
[1750129798711,1.16797906,107670.0,107660.0,0.00243364]
[1750129799811,0.95753906,107670.0,107660.0,0.00243364]
[1750129800146,1.16793906,107670.0,107660.0,0.00243364]
[1750129800772,1.26408828,107670.0,107660.0,0.00243364]
[1750129800981,0.65449321,107670.0,107660.0,0.00243364]
[1750129801197,0.65449321,107670.0,107660.0,0.09256236]
[1750129801198,0.60485145,107670.0,107660.0,0.09256236]
[1750129801415,0.58264039,107670.0,107660.0,0.11138883]
[1750129801861,0.79244539,107670.0,107660.0,0.11138883]
[1750129802083,0.19604039,107670.0,107660.0,0.1598932]
[1750129802306,0.019575,107670.0,107660.0,0.34566321]
[1750129802522,0.2146148,107670.0,107660.0,0.36423995]
[1750129802729,0.02886204,107670.0,107660.0,0.46976977]
[1750129802944,0.02886204,107670.0,107660.0,0.47905766]
[1750129803151,0.001,107670.0,107660.0,0.47905766]
[1750129803415,0.02886127,107670.0,107660.0,0.47905766]
[1750129803629,0.21461506,107670.0,107660.0,0.35374862]
[1750129804058,0.21461506,107670.0,107660.0,0.36303677]
[1750129804280,0.2136154,107670.0,107660.0,0.33517188]
[1750129804488,0.2136154,107670.0,107660.0,0.35374879]
[1750129804727,0.2136154,107670.0,107660.0,0.36303711]
[1750129804942,0.2136154,107670.0,107660.0,0.37332535]
[1750129805151,0.2136154,107670.0,107660.0,0.3826135]
[1750129805371,0.2136154,107670.0,107660.0,0.38261306]
[1750129805599,0.02786264,107670.0,107660.0,0.38261263]
[1750129806672,0.02786264,107670.0,107660.0,0.37332465]
[1750129807375,0.2136154,107670.0,107660.0,0.37332465]
[1750129807591,0.2136154,107670.0,107660.0,0.36403659]
[1750129808000,0.2136154,107670.0,107660.0,0.37332465]
[1750129808224,0.01857414,107670.0,107660.0,0.40261203]
[1750129808459,0.02786151,107670.0,107660.0,0.40261203]
[1750129808649,0.03714906,107670.0,107660.0,0.39332431]
[1750129808852,0.04643669,107670.0,107660.0,0.39332431]
[1750129809286,0.03714975,107670.0,107660.0,0.38403633]
[1750129809741,0.19738145,107680.0,107670.0,0.26464092]
[1750129809951,0.21595396,107680.0,107670.0,0.72456268]
[1750129810561,0.19738145,107680.0,107670.0,0.72456268]
[1750129810695,0.20666753,107680.0,107670.0,0.72456268]
[1750129810921,0.21595378,107680.0,107670.0,0.92951643]
[1750129811130,0.42026223,107680.0,107670.0,0.69670099]
[1750129811331,0.4036899,107680.0,107670.0,0.52019578]
[1750129811552,0.4036899,107680.0,107670.0,0.715236]
[1750129811803,0.4036899,107680.0,107670.0,0.73381049]
[1750129811968,0.4036899,107680.0,107670.0,0.72452329]
[1750129812144,0.4036899,107680.0,107670.0,0.49640953]
[1750129812513,0.4036899,107680.0,107670.0,0.5245232]
[1750129812722,0.4036899,107680.0,107670.0,0.31090823]
[1750129812928,0.59935731,107680.0,107670.0,0.47374862]
[1750129813104,0.38511696,107680.0,107670.0,0.47374862]
[1750129813392,0.19504039,107670.0,107660.0,0.02126011]
[1750129813804,0.39999414,107670.0,107660.0,0.02126011]
[1750129814863,0.19504039,107670.0,107660.0,0.02226011]
[1750129815829,0.45137519,107670.0,107660.0,0.02226011]
[1750129816258,0.19504039,107670.0,107660.0,0.02226011]
[1750129820687,0.19504039,107670.0,107660.0,0.00343364]
[1750129820890,0.19504039,107670.0,107660.0,0.02226011]
[1750129821075,0.48237519,107670.0,107660.0,0.02226011]
[1750129821677,0.46727519,107670.0,107660.0,0.02226011]
[1750129821889,0.46727519,107670.0,107660.0,0.02126011]
[1750129824051,0.21294039,107670.0,107660.0,0.02126011]
[1750129825744,0.46927519,107670.0,107660.0,0.02126011]
[1750129826235,0.48527519,107670.0,107660.0,0.02126011]
[1750129826721,0.9360578,107670.0,107660.0,0.00243364]
[1750129827149,0.679723,107670.0,107660.0,0.00243364]
[1750129827363,0.9360578,107670.0,107660.0,0.00243364]
[1750129827819,0.889643,107670.0,107660.0,0.00243364]
[1750129828034,1.1459778,107670.0,107660.0,0.00243364]
[1750129831020,0.9360578,107670.0,107660.0,0.00243364]
[1750129831235,0.58348039,107670.0,107660.0,0.02126011]
[1750129831450,0.53704039,107670.0,107660.0,0.11712243]
[1750129831659,0.74696039,107670.0,107660.0,0.11712243]
[1750129831869,0.58348039,107670.0,107660.0,0.11712243]
[1750129832214,0.36057449,107670.0,107660.0,0.352969]
[1750129832439,0.02057414,107670.0,107660.0,0.36225689]
[1750129832647,0.0298616,107670.0,107660.0,0.36225689]
[1750129832860,0.02986143,107670.0,107660.0,0.36225689]
[1750129833296,0.03714889,107670.0,107660.0,0.36225689]
[1750129833492,0.04643644,107670.0,107660.0,0.36225689]
[1750129833696,0.0371495,107670.0,107660.0,0.353969]
[1750129833911,0.19504031,107670.0,107660.0,0.05376011]
[1750129834122,0.19504031,107670.0,107660.0,0.06304852]
[1750129834327,0.19504031,107670.0,107660.0,0.25810685]
[1750129834536,0.19504031,107670.0,107660.0,0.24881853]
[1750129834736,0.18575276,107670.0,107660.0,0.24881853]
[1750129836484,0.39081738,107670.0,107660.0,0.22150011]
[1750129836687,0.39081738,107670.0,107660.0,0.20570011]
[1750129837308,0.39081738,107670.0,107660.0,0.21498852]
[1750129837455,0.18575276,107670.0,107660.0,0.41004685]
[1750129837654,0.00290247,107670.0,107660.0,0.28108289]
[1750129837865,0.01857483,107670.0,107660.0,0.37091161]
[1750129838067,0.01857432,107670.0,107660.0,0.46715337]
[1750129838265,0.03714864,107670.0,107660.0,0.46715337]
[1750129838469,0.03714864,107670.0,107660.0,0.50102311]
[1750129838718,0.21361454,107670.0,107660.0,0.45786548]
[1750129838929,0.22290217,107670.0,107660.0,0.46715354]
[1750129839119,0.03714941,107670.0,107660.0,0.46715354]
[1750129839638,0.22290217,107670.0,107660.0,0.44857733]
[1750129839865,0.41867967,107670.0,107660.0,0.41928901]
[1750129840069,0.41867967,107670.0,107660.0,0.40368901]
[1750129840280,0.40939247,107670.0,107660.0,0.20201909]
[1750129840451,0.40939247,107670.0,107660.0,0.39707751]
[1750129840868,0.40010501,107670.0,107660.0,0.18319262]
[1750129841068,0.40010501,107670.0,107660.0,0.20201909]
[1750129841311,0.40010501,107670.0,107660.0,0.3877891]
[1750129841312,0.40939238,107670.0,107660.0,0.3877891]
[1750129841540,0.40939238,107670.0,107660.0,0.20201909]
[1750129841682,0.40939238,107670.0,107660.0,0.2113075]
[1750129841880,0.39081738,107670.0,107660.0,0.20201909]
[1750129842088,0.39081738,107670.0,107660.0,0.0996754]
[1750129842311,0.39081738,107670.0,107660.0,0.11850187]
[1750129842544,0.39081738,107670.0,107660.0,0.12779037]
[1750129842756,0.39081738,107670.0,107660.0,0.13707878]
[1750129842975,0.39081738,107670.0,107660.0,0.11850187]
[1750129843429,0.39081738,107670.0,107660.0,0.0996754]
[1750129843687,0.39081738,107670.0,107660.0,0.02226011]
[1750129845026,0.626282,107670.0,107660.0,0.00343364]
[1750129845249,1.22575122,107670.0,107660.0,0.00343364]
[1750129845680,1.129602,107670.0,107660.0,0.00343364]
[1750129845852,1.14414285,107670.0,107660.0,0.00343364]
[1750129846053,1.24038461,107670.0,107660.0,0.00343364]
[1750129846266,1.24238461,107670.0,107660.0,0.00343364]
[1750129846474,1.26464344,107670.0,107660.0,0.00243364]
[1750129847073,1.31961387,107670.0,107660.0,0.00243364]
[1750129847276,1.26464344,107670.0,107660.0,0.00243364]
[1750129847530,1.24238461,107670.0,107660.0,0.00243364]
[1750129847914,1.24038461,107670.0,107660.0,0.00243364]
[1750129848121,1.24438461,107670.0,107660.0,0.00243364]
[1750129849052,1.24638461,107670.0,107660.0,0.00243364]
[1750129850503,0.67293537,107670.0,107660.0,0.00243364]
[1750129850714,1.29266461,107670.0,107660.0,0.00243364]
[1750129851966,1.08306461,107670.0,107660.0,0.00243364]
[1750129852176,0.73681738,107670.0,107660.0,0.02126011]
[1750129852355,0.94637738,107670.0,107660.0,0.09548883]
[1750129852723,0.94637738,107670.0,107660.0,0.11712207]
[1750129853880,0.90009738,107670.0,107660.0,0.11712207]
[1750129854082,0.73681738,107670.0,107660.0,0.09548883]
[1750129854205,0.19175276,107670.0,107660.0,0.3315354]
[1750129854418,0.19175276,107670.0,107660.0,0.32224725]
[1750129854784,0.39681738,107670.0,107660.0,0.32224725]
[1750129855177,0.39681738,107670.0,107660.0,0.30624725]
[1750129856956,0.39681738,107670.0,107660.0,0.12047733]
[1750129857158,0.39681738,107670.0,107660.0,0.12976574]
[1750129857292,0.39681738,107670.0,107660.0,0.09548883]
[1750129858252,0.39681738,107670.0,107660.0,0.10477733]
[1750129858421,0.39681738,107670.0,107660.0,0.31633575]
[1750129858622,0.39681738,107670.0,107660.0,0.32562407]
[1750129858863,0.39681738,107670.0,107660.0,0.33491231]
[1750129859441,0.19175276,107670.0,107660.0,0.36030046]
[1750129859640,0.01528746,107670.0,107660.0,0.36029985]
[1750129859863,0.006,107670.0,107660.0,0.82480623]
[1750129860437,0.006,107670.0,107660.0,0.63034635]
[1750129860637,0.02457432,107670.0,107660.0,0.54551289]
[1750129860885,0.03386178,107670.0,107660.0,0.54551289]
[1750129861333,0.04314933,107670.0,107660.0,0.54551298]
[1750129861539,0.03714933,107670.0,107660.0,0.38231246]
[1750129861749,0.03714933,107670.0,107660.0,0.54551246]
[1750129861931,0.03714933,107670.0,107660.0,0.54651246]
[1750129862392,0.02786178,107670.0,107660.0,0.54651246]
[1750129862606,0.41868002,107670.0,107660.0,0.05486011]
[1750129862843,0.43979256,107670.0,107660.0,0.18542011]
[1750129863058,0.64485718,107670.0,107660.0,0.02226011]
[1750129863265,1.0810064,107670.0,107660.0,0.02226011]
[1750129863476,0.98485718,107670.0,107660.0,0.02226011]
[1750129864148,0.98485718,107670.0,107660.0,0.00343364]
[1750129864757,0.98685718,107670.0,107660.0,0.00343364]
[1750129864962,1.09763979,107670.0,107660.0,0.00343364]
[1750129865172,1.09763979,107670.0,107660.0,0.00243364]
[1750129865587,1.09563979,107670.0,107660.0,0.00243364]
[1750129866000,1.09963979,107670.0,107660.0,0.00243364]
[1750129866213,1.19578901,107670.0,107660.0,0.00243364]
[1750129866425,1.10163979,107670.0,107660.0,0.00243364]
[1750129867712,1.12388324,107670.0,107660.0,0.00243364]
[1750129874222,1.16996324,107670.0,107660.0,0.00243364]
[1750129874426,0.88127517,107670.0,107660.0,0.00243364]
[1750129874738,1.07529517,107670.0,107660.0,0.00243364]
[1750129874943,1.28035979,107670.0,107660.0,0.00243364]
[1750129875151,1.31225979,107670.0,107660.0,0.00243364]
[1750129876268,1.10313979,107670.0,107660.0,0.00243364]
[1750129876500,1.29625979,107670.0,107660.0,0.00243364]
[1750129876717,0.75539256,107670.0,107660.0,0.00243364]
[1750129876941,0.96447256,107670.0,107660.0,0.00243364]
[1750129879109,0.75539256,107670.0,107660.0,0.00243364]
[1750129879454,0.55032794,107670.0,107660.0,0.29715884]
[1750129879619,0.55032794,107670.0,107660.0,0.12778883]
[1750129880307,0.53504039,107670.0,107660.0,0.12778883]
[1750129880743,0.74010501,107670.0,107660.0,0.12778883]
[1750129881614,0.53704039,107670.0,107660.0,0.12778883]
[1750129881856,0.74210501,107670.0,107660.0,0.02126011]
[1750129882067,0.94716963,107670.0,107660.0,0.02126011]
[1750129882287,0.21561471,107670.0,107660.0,0.25640677]
[1750129882551,0.01128694,107670.0,107660.0,0.44545329]
[1750129882766,0.02057397,107670.0,107660.0,0.65051791]
[1750129882970,0.00928694,107670.0,107660.0,0.65051791]
[1750129883170,0.00928694,107670.0,107660.0,0.44545329]
[1750129883377,0.01128694,107670.0,107660.0,0.44545329]
[1750129883582,0.01857397,107670.0,107660.0,0.44545329]
[1750129884007,0.02786109,107670.0,107660.0,0.44545329]
[1750129884211,0.20666762,107680.0,107670.0,0.2849411]
[1750129884469,0.20666762,107680.0,107670.0,0.74916748]
[1750129884682,0.19738145,107680.0,107670.0,0.95978046]
[1750129884925,0.20666762,107680.0,107670.0,0.82410286]
[1750129885155,0.22524047,107680.0,107670.0,0.82406286]
[1750129885367,0.21595396,107680.0,107670.0,0.82406286]
[1750129885632,0.21795396,107680.0,107670.0,0.82406286]
[1750129885884,0.22724056,107680.0,107670.0,0.82406286]
[1750129886109,0.22724047,107680.0,107670.0,0.82406286]
[1750129886763,0.21795396,107680.0,107670.0,0.82406286]
[1750129886899,0.20866762,107680.0,107670.0,0.82406286]
[1750129887117,0.20866744,107680.0,107670.0,0.82406286]
[1750129887852,0.21795361,107680.0,107670.0,0.82406286]
[1750129888333,0.22724004,107680.0,107670.0,0.82406286]
[1750129889021,0.23652655,107680.0,107670.0,0.82406286]
[1750129889270,0.21795361,107680.0,107670.0,0.82406286]
[1750129889505,0.23652655,107680.0,107670.0,0.82406286]
[1750129889762,0.24581323,107680.0,107670.0,0.82406286]
[1750129890041,0.22723995,107680.0,107670.0,0.82406286]
[1750129890350,0.23652655,107680.0,107670.0,0.82406286]
[1750129890553,0.23652655,107680.0,107670.0,0.83463219]
[1750129890888,0.22723995,107680.0,107670.0,0.83463219]
[1750129891092,0.23652655,107680.0,107670.0,0.83463219]
[1750129891301,0.23652655,107680.0,107670.0,0.82406286]
[1750129891506,0.24581332,107680.0,107670.0,0.81477583]
[1750129891713,0.24581332,107680.0,107670.0,0.82406303]
[1750129892228,0.43154883,107680.0,107670.0,0.65189583]
[1750129892439,0.40369033,107680.0,107670.0,0.37150176]
[1750129892640,0.40369033,107680.0,107670.0,0.29442823]
[1750129892781,0.40369033,107680.0,107670.0,0.01882647]
[1750129892979,0.65992184,107680.0,107670.0,0.01882647]
[1750129893180,0.19504031,107670.0,107660.0,0.21612011]
[1750129893393,0.19504031,107670.0,107660.0,0.29636187]
[1750129893741,0.19504031,107670.0,107660.0,0.0986754]
[1750129893866,0.19504031,107670.0,107660.0,0.28026187]
[1750129894286,0.19504031,107670.0,107660.0,0.02226011]
[1750129895116,0.20534339,107670.0,107660.0,0.02226011]
[1750129895570,0.9959949,107670.0,107660.0,0.02226011]
[1750129896666,0.9959949,107670.0,107660.0,0.02126011]
[1750129897627,0.73976339,107670.0,107660.0,0.02126011]
[1750129897975,0.9959949,107670.0,107660.0,0.02126011]
[1750129898139,0.9979949,107670.0,107660.0,0.02126011]
[1750129899992,0.74176339,107670.0,107660.0,0.02126011]
[1750129900214,0.9979949,107670.0,107660.0,0.02126011]
[1750129901118,1.09414412,107670.0,107660.0,0.00243364]
[1750129901293,0.9979949,107670.0,107660.0,0.00243364]
[1750129903536,0.9979949,107670.0,107660.0,0.00211765]
[1750129906448,0.74176339,107670.0,107660.0,0.00211765]
[1750129906653,0.9979949,107670.0,107660.0,0.00211765]
[1750129906877,1.0437149,107670.0,107660.0,0.00211765]
[1750129907054,1.19772899,107670.0,107660.0,0.00211765]
[1750129908045,0.54734339,107670.0,107660.0,0.02094412]
[1750129908221,0.79830619,107670.0,107660.0,0.02094412]
[1750129908428,0.79830619,107670.0,107660.0,0.11932361]
[1750129909032,0.79830619,107670.0,107660.0,0.09517284]
[1750129914408,0.79830619,107670.0,107660.0,0.17977284]
[1750129914916,0.35128729,107670.0,107660.0,0.39584285]
[1750129915075,0.01128703,107670.0,107660.0,0.72507177]
[1750129915282,0.01128703,107670.0,107660.0,0.51994897]
[1750129915477,0.002,107670.0,107660.0,0.79994897]
[1750129915819,0.002,107670.0,107660.0,1.00507177]
[1750129917949,0.002,107670.0,107660.0,1.04507177]
[1750129920945,0.19738145,107680.0,107670.0,0.2630411]
[1750129921162,0.19738145,107680.0,107670.0,0.7777978]
[1750129921606,0.19738145,107680.0,107670.0,0.83813865]
[1750129921838,0.19738145,107680.0,107670.0,1.17813865]
[1750129922087,0.0162462,107690.0,107680.0,0.02]
[1750129922320,0.012,107730.0,107680.0,0.02]
[1750129922321,0.012,107730.0,107720.0,0.57234195]
[1750129922557,0.00909809,107740.0,107730.0,1.36301791]
[1750129922798,0.00909809,107740.0,107730.0,1.56301791]
[1750129923035,0.00909809,107740.0,107730.0,1.59178233]
[1750129923269,0.00909809,107740.0,107730.0,1.67417971]
[1750129923788,0.00957135,107740.0,107730.0,1.67417971]
[1750129924027,0.01397,107750.0,107740.0,0.6358023]
[1750129924261,0.00030439,107770.0,107740.0,1.13414921]
[1750129924499,0.00030439,107770.0,107760.0,0.54850444]
[1750129924733,0.00030439,107770.0,107760.0,0.82465938]
[1750129924970,0.00030439,107770.0,107760.0,0.86771817]
[1750129925598,0.00030439,107770.0,107760.0,0.86716403]
[1750129925869,0.00030439,107770.0,107760.0,0.78778994]
[1750129926080,0.00030439,107770.0,107760.0,0.62554994]
[1750129926327,0.00030439,107770.0,107760.0,1.07940403]
[1750129926562,0.00030439,107770.0,107760.0,0.91716403]
[1750129926785,0.00030439,107770.0,107760.0,1.07940403]
[1750129927022,0.01,107780.0,107770.0,0.48839782]
[1750129927264,0.00071103,107780.0,107770.0,0.94463958]
[1750129927484,0.00071103,107780.0,107770.0,0.90581311]
[1750129927712,0.002,107790.0,107780.0,0.21339661]
[1750129927982,0.002,107790.0,107780.0,0.30963837]
[1750129928197,0.002,107790.0,107780.0,0.47195837]
[1750129928424,0.002,107790.0,107780.0,0.49078484]
[1750129929084,0.002,107790.0,107780.0,0.74698685]
[1750129929304,0.002,107790.0,107780.0,0.49183191]
[1750129929515,0.002,107790.0,107780.0,0.74798685]
[1750129929734,0.002,107790.0,107780.0,0.49183191]
[1750129930207,0.002,107790.0,107780.0,0.49211191]
[1750129930420,0.002,107790.0,107780.0,0.74826685]
[1750129931278,0.002,107790.0,107780.0,0.49211191]
[1750129931518,0.002,107790.0,107780.0,0.33151191]
[1750129931731,0.0205533,107790.0,107780.0,0.49399191]
[1750129931959,0.002,107790.0,107780.0,0.69399191]
[1750129934468,0.002,107790.0,107780.0,0.95014685]
[1750129934903,0.002,107790.0,107780.0,0.69399191]
[1750129937031,0.002,107790.0,107780.0,0.95014685]
[1750129937260,0.002,107790.0,107780.0,0.96554685]
[1750129938699,0.002,107790.0,107780.0,1.22088763]
[1750129938916,0.002,107790.0,107780.0,0.31268544]
[1750129939136,0.002,107790.0,107780.0,0.52367848]
[1750129939369,0.0174,107790.0,107780.0,0.72298972]
[1750129939575,0.0359533,107790.0,107780.0,0.72298972]
[1750129939786,0.0174,107790.0,107780.0,0.72298972]
[1750129940229,0.002,107790.0,107780.0,0.72310972]
[1750129940434,0.002,107790.0,107780.0,0.56078972]
[1750129940643,0.002,107790.0,107780.0,0.72314972]
[1750129941069,0.002,107790.0,107780.0,0.97930466]
[1750129941287,0.002,107790.0,107780.0,1.48937423]
[1750129941496,0.002,107790.0,107780.0,1.53509423]
[1750129941715,0.002,107790.0,107780.0,1.63795027]
[1750129941924,0.002,107790.0,107780.0,1.66274008]
[1750129942766,0.002,107790.0,107780.0,1.66074008]
[1750129943021,0.002,107790.0,107780.0,1.66574008]
[1750129943230,0.002,107790.0,107780.0,1.66474008]
[1750129943879,0.003,107790.0,107780.0,1.40858514]
[1750129944086,0.003,107790.0,107780.0,1.66474008]
[1750129945225,0.003,107790.0,107780.0,1.70880929]
[1750129945453,0.008,107790.0,107780.0,1.67601529]
[1750129945957,0.002,107790.0,107780.0,0.65778972]
[1750129946188,0.016,107790.0,107780.0,0.63878972]
[1750129946409,0.021,107790.0,107780.0,0.63878972]
[1750129946620,0.021,107790.0,107780.0,0.80182972]
[1750129946896,0.016,107790.0,107780.0,0.80182972]
[1750129947327,0.016,107790.0,107780.0,0.80478972]
[1750129947842,0.002,107790.0,107780.0,0.80374972]
[1750129948068,0.002,107790.0,107780.0,0.80674972]
[1750129949419,0.002,107790.0,107780.0,0.64378972]
[1750129949634,0.002,107790.0,107780.0,0.80666972]
[1750129949852,0.002,107790.0,107780.0,0.80652935]
[1750129951396,0.23710012,107790.0,107780.0,0.2011153]
[1750129951846,0.23710012,107790.0,107780.0,0.1211153]
[1750129952054,0.28282012,107790.0,107780.0,0.02487354]
[1750129952273,0.53897506,107790.0,107780.0,0.02487354]
[1750129952706,0.8894086,107790.0,107780.0,0.00604707]
[1750129952920,0.92028112,107790.0,107780.0,0.00304707]
[1750129953365,0.92028112,107790.0,107780.0,0.00504707]
[1750129953801,0.92028112,107790.0,107780.0,4.707e-05]
[1750129954019,1.03106373,107790.0,107780.0,4.707e-05]
[1750129954226,1.19394373,107790.0,107780.0,0.00104707]
[1750129954445,1.19394373,107790.0,107740.0,0.202]
[1750129954446,0.20417572,107750.0,107740.0,0.202]
[1750129954657,0.49273066,107750.0,107740.0,0.002]
[1750129954879,0.56065071,107750.0,107740.0,0.0020472]